fUSD/lending_fUSD_20250610
["ID","MTS","AMOUNT","RATE_DAILY","PERIOD"]
[365188946,1749525084115,-490.0,0.00017424,2]
[365188947,1749525084125,-490.0,0.00017424,2]
[365188948,1749525084135,-490.0,0.00017424,2]
[365188949,1749525084146,-835.66,0.00017424,2]
[365188950,1749525084157,-150.0,0.00017434,2]
[365188951,1749525084166,-150.056,0.00017434,2]
[365188952,1749525084175,-150.128,0.00017434,2]
[365188953,1749525084185,-150.0,0.00017434,2]
[365188954,1749525084194,-150.161,0.00017434,2]
[365188955,1749525084204,-2637.0,0.00017434,2]
[365188956,1749525084213,-945.0,0.00017434,2]
[365188957,1749525084222,-811.0,0.00017434,2]
[365188958,1749525084232,-637.0,0.00017434,2]
[365188959,1749525084241,-934.108,0.00017434,2]
[365188960,1749525084251,-2001.0,0.00017434,2]
[365188961,1749525084260,-590.0,0.00017434,2]
[365188962,1749525084269,-1389.163,0.00017434,2]
[365188963,1749525084278,-558.0,0.00017434,2]
[365188964,1749525084288,-1256.0,0.00017434,2]
[365188965,1749525084298,-500.0,0.00017434,2]
[365188966,1749525084308,-2241.0,0.00017455,2]
[365188967,1749525084318,-1000.0,0.00017472,2]
[365188968,1749525084329,-2241.0,0.00017472,2]
[365188969,1749525084338,-252.8356981,0.00017475,2]
[365188970,1749525084348,-1000.0,0.00017521,2]
[365188971,1749525084358,-1000.0,0.00017521,2]
[365188972,1749525084368,-501.90482839,0.00017521,2]
[365188973,1749525084378,-1000.0,0.00017521,2]
[365188974,1749525084387,-500.0,0.00017534,2]
[365188975,1749525084397,-500.0,0.00017534,2]
[365188976,1749525084406,-620.0,0.00017534,2]
[365188977,1749525084416,-2241.0,0.00017558,2]
[365188978,1749525084425,-1482.7938164,0.00017577,2]
[365188979,1749525084435,-34119.8944666,0.00017577,2]
[365188980,1749525084445,-4997.9411573,0.00017577,2]
[365188981,1749525084454,-36181.0656,0.00017577,2]
[365188982,1749525084463,-36203.9903999,0.00017577,2]
[365188983,1749525084473,-3048.4371921,0.00017577,2]
[365188984,1749525084483,-295.0,0.0001758,2]
[365188985,1749525084492,-500.0,0.00017588,2]
[365188986,1749525084502,-307.36126504,0.00017588,2]
[365188987,1749525084512,-730.31,0.00017588,2]
[365188988,1749525084523,-950.89,0.00017588,2]
[365188989,1749525084532,-664.92,0.00017588,2]
[365188990,1749525084541,-500.0,0.00017588,2]
[365188991,1749525084551,-490.0,0.00017589,2]
[365188992,1749525084560,-490.0,0.00017589,2]
[365188993,1749525084571,-490.0,0.00017589,2]
[365188994,1749525084581,-490.0,0.00017589,2]
[365188995,1749525084592,-490.0,0.00017589,2]
[365188996,1749525084605,-490.0,0.00017589,2]
[365188997,1749525084614,-503.0,0.00017589,2]
[365188998,1749525084624,-706.89,0.00017589,2]
[365188999,1749525084635,-490.0,0.00017589,2]
[365189000,1749525084645,-320.26212375,0.00017589,2]
[365189001,1749525084655,-665.87,0.00017589,2]
[365189002,1749525084665,-490.0,0.00017589,2]
[365189003,1749525084675,-490.0,0.00017589,2]
[365189004,1749525084685,-490.0,0.00017589,2]
[365189005,1749525084695,-504.72,0.00017589,2]
[365189006,1749525084704,-579.14,0.00017589,2]
[365189007,1749525084714,-490.0,0.00017589,2]
[365189008,1749525084723,-282.65177813,0.00017589,2]
[365189009,1749525084733,-490.0,0.00017589,2]
[365189010,1749525084742,-490.0,0.00017589,2]
[365189011,1749525084751,-665.32,0.00017589,2]
[365189012,1749525084760,-490.0,0.00017589,2]
[365189013,1749525084770,-490.0,0.00017589,2]
[365189014,1749525084779,-490.0,0.00017589,2]
[365189015,1749525084788,-490.0,0.00017589,2]
[365189016,1749525084798,-569.09201401,0.00017589,2]
[365189017,1749525084808,-250.85082587,0.00017589,2]
[365189018,1749525084819,-490.0,0.00017589,2]
[365189019,1749525084828,-371.39476498,0.00017589,2]
[365189020,1749525084838,-490.0,0.00017589,2]
[365189021,1749525084847,-490.0,0.00017589,2]
[365189022,1749525084858,-644.96,0.00017589,2]
[365189023,1749525084867,-490.0,0.00017589,2]
[365189024,1749525084877,-516.83179414,0.00017589,2]
[365189025,1749525084887,-614.43,0.00017589,2]
[365189026,1749525084897,-490.0,0.00017589,2]
[365189027,1749525084907,-490.0,0.00017589,2]
[365189028,1749525084916,-490.0,0.00017589,2]
[365189029,1749525084926,-484.75273183,0.00017589,2]
[365189030,1749525084936,-490.0,0.00017589,2]
[365189031,1749525084946,-862.63,0.00017589,2]
[365189032,1749525084955,-2092.76,0.00017589,2]
[365189033,1749525084964,-490.0,0.00017589,2]
[365189034,1749525084974,-490.0,0.00017589,2]
[365189035,1749525084983,-460.0,0.00017589,2]
[365189036,1749525084993,-490.0,0.00017589,2]
[365189037,1749525085002,-401.90779933,0.00017589,2]
[365189038,1749525085012,-490.0,0.00017589,2]
[365189039,1749525085021,-490.0,0.00017589,2]
[365189040,1749525085031,-181.48181066,0.00017589,2]
[365189041,1749525085041,-597.22,0.00017589,2]
[365189042,1749525085050,-490.0,0.00017589,2]
[365189043,1749525085060,-490.0,0.00017589,2]
[365189044,1749525085069,-490.0,0.00017589,2]
[365189045,1749525085079,-561.81796338,0.00017589,2]
[365189046,1749525085088,-490.0,0.00017589,2]
[365189047,1749525085098,-496.63,0.00017589,2]
[365189048,1749525085107,-490.0,0.00017589,2]
[365189049,1749525085117,-490.0,0.00017589,2]
[365189050,1749525085126,-490.0,0.00017589,2]
[365189051,1749525085135,-490.0,0.00017589,2]
[365189052,1749525085145,-490.0,0.00017589,2]
[365189053,1749525085155,-490.0,0.00017589,2]
[365189054,1749525085165,-490.0,0.00017589,2]
[365189055,1749525085175,-490.0,0.00017589,2]
[365189056,1749525085184,-490.0,0.00017589,2]
[365189057,1749525085194,-565.28,0.00017589,2]
[365189058,1749525085203,-490.0,0.00017589,2]
[365189059,1749525085214,-490.0,0.00017589,2]
[365189060,1749525085224,-490.0,0.00017589,2]
[365189061,1749525085233,-490.0,0.00017589,2]
[365189062,1749525085243,-490.0,0.00017589,2]
[365189063,1749525085254,-490.0,0.00017589,2]
[365189064,1749525085263,-490.0,0.00017589,2]
[365189065,1749525085273,-291.58191133,0.00017589,2]
[365189066,1749525085283,-537.96,0.00017589,2]
[365189067,1749525085293,-915.11,0.00017589,2]
[365189068,1749525085302,-490.0,0.00017589,2]
[365189069,1749525085312,-490.0,0.00017589,2]
[365189070,1749525085322,-584.92702912,0.00017589,2]
[365189071,1749525085331,-490.0,0.00017589,2]
[365189072,1749525085341,-556.18,0.00017589,2]
[365189073,1749525085350,-490.0,0.00017589,2]
[365189074,1749525085360,-490.0,0.00017589,2]
[365189075,1749525085371,-490.0,0.00017589,2]
[365189076,1749525085381,-535.23,0.00017589,2]
[365189077,1749525085391,-490.0,0.00017589,2]
[365189078,1749525085401,-3774.302836,0.00017589,2]
[365189079,1749525085411,-490.0,0.00017589,2]
[365189080,1749525085421,-490.0,0.00017589,2]
[365189081,1749525085431,-2294.03,0.00017589,2]
[365189082,1749525085442,-722.61,0.00017589,2]
[365189083,1749525085452,-490.0,0.00017589,2]
[365189084,1749525085462,-757.61,0.00017589,2]
[365189085,1749525085471,-490.0,0.00017589,2]
[365189086,1749525085481,-490.0,0.00017589,2]
[365189087,1749525085491,-490.0,0.00017589,2]
[365189088,1749525085500,-614.87716864,0.00017589,2]
[365189089,1749525085510,-490.0,0.00017589,2]
[365189090,1749525085688,-1761.99,0.00017589,2]
[365189091,1749525085698,-498.01,0.00017589,2]
[365189092,1749525085708,-490.0,0.00017589,2]
[365189093,1749525085717,-626.78,0.00017589,2]
[365189094,1749525085727,-2487.15,0.00017589,2]
[365189095,1749525085736,-490.0,0.00017589,2]
[365189096,1749525085746,-490.0,0.00017589,2]
[365189097,1749525085755,-556.25612482,0.00017589,2]
[365189098,1749525085765,-490.0,0.00017589,2]
[365189099,1749525085775,-490.0,0.00017589,2]
[365189100,1749525085787,-490.0,0.00017589,2]
[365189101,1749525085796,-490.0,0.00017589,2]
[365189102,1749525085806,-996.35,0.00017589,2]
[365189103,1749525085815,-591.43,0.00017589,2]
[365189104,1749525085825,-490.0,0.00017589,2]
[365189105,1749525085835,-553.91,0.00017589,2]
[365189106,1749525085846,-490.0,0.00017589,2]
[365189107,1749525085855,-348.20221167,0.00017589,2]
[365189108,1749525085866,-490.0,0.00017589,2]
[365189109,1749525085877,-490.0,0.00017589,2]
[365189110,1749525085887,-490.0,0.00017589,2]
[365189111,1749525085897,-490.0,0.00017589,2]
[365189112,1749525085907,-344.64427524,0.00017589,2]
[365189113,1749525085919,-490.0,0.00017589,2]
[365189114,1749525085929,-673.4,0.00017589,2]
[365189115,1749525085942,-490.0,0.00017589,2]
[365189116,1749525085953,-356.21296519,0.00017589,2]
[365189117,1749525085963,-490.0,0.00017589,2]
[365189118,1749525085974,-595.43,0.00017589,2]
[365189119,1749525085986,-1580.0,0.00017589,2]
[365189120,1749525085997,-3953.88,0.00017589,2]
[365189121,1749525086010,-605.59,0.00017589,2]
[365189122,1749525086021,-622.29539803,0.00017589,2]
[365189123,1749525086033,-490.0,0.00017589,2]
[365189124,1749525086043,-490.0,0.00017589,2]
[365189125,1749525086052,-490.0,0.00017589,2]
[365189126,1749525086062,-490.0,0.00017589,2]
[365189127,1749525086072,-490.0,0.00017589,2]
[365189128,1749525086082,-490.0,0.00017589,2]
[365189129,1749525086092,-1687.14,0.00017589,2]
[365189130,1749525086102,-490.0,0.00017589,2]
[365189131,1749525086112,-490.0,0.00017589,2]
[365189132,1749525086122,-835.39,0.00017589,2]
[365189133,1749525086131,-490.0,0.00017589,2]
[365189134,1749525086141,-988.78,0.00017589,2]
[365189135,1749525086151,-509.02,0.00017589,2]
[365189136,1749525086161,-490.0,0.00017589,2]
[365189137,1749525086171,-490.0,0.00017589,2]
[365189138,1749525086182,-490.0,0.00017589,2]
[365189139,1749525086193,-520.99,0.00017589,2]
[365189140,1749525086202,-490.0,0.00017589,2]
[365189141,1749525086213,-490.0,0.00017589,2]
[365189142,1749525086223,-490.0,0.00017589,2]
[365189143,1749525086233,-490.0,0.00017589,2]
[365189144,1749525086244,-490.0,0.00017589,2]
[365189145,1749525086254,-490.0,0.00017589,2]
[365189146,1749525086264,-490.0,0.00017589,2]
[365189147,1749525086274,-402.50510742,0.00017589,2]
[365189148,1749525086284,-874.46,0.00017589,2]
[365189149,1749525086294,-490.0,0.00017589,2]
[365189150,1749525086304,-490.0,0.00017589,2]
[365189151,1749525086314,-490.0,0.00017589,2]
[365189152,1749525086324,-1615.08,0.00017589,2]
[365189153,1749525086333,-303.22533431,0.00017589,2]
[365189154,1749525086342,-490.0,0.00017589,2]
[365189155,1749525086352,-529.84,0.00017589,2]
[365189156,1749525086363,-1075.4,0.00017589,2]
[365189157,1749525086372,-490.0,0.00017589,2]
[365189158,1749525086383,-655.8,0.00017589,2]
[365189159,1749525086393,-553.14,0.00017589,2]
[365189160,1749525086402,-709.07,0.00017589,2]
[365189161,1749525086412,-1655.79,0.00017589,2]
[365189162,1749525086422,-490.0,0.00017589,2]
[365189163,1749525086432,-2379.12,0.00017589,2]
[365189164,1749525086442,-490.0,0.00017589,2]
[365189165,1749525086451,-490.0,0.00017589,2]
[365189166,1749525086462,-637.09,0.00017589,2]
[365189167,1749525086472,-1068.67,0.00017589,2]
[365189168,1749525086482,-490.0,0.00017589,2]
[365189169,1749525086492,-490.0,0.00017589,2]
[365189170,1749525086502,-588.78299144,0.00017589,2]
[365189171,1749525086513,-927.29,0.00017589,2]
[365189172,1749525086523,-490.0,0.00017589,2]
[365189173,1749525086534,-739.16,0.00017589,2]
[365189174,1749525086544,-848.47,0.00017589,2]
[365189175,1749525086555,-583.60051814,0.00017589,2]
[365189176,1749525086565,-490.0,0.00017589,2]
[365189177,1749525086575,-490.0,0.00017589,2]
[365189178,1749525086585,-490.0,0.00017589,2]
[365189179,1749525086597,-490.0,0.00017589,2]
[365189180,1749525086607,-1641.81,0.00017589,2]
[365189181,1749525086616,-2238.41,0.00017589,2]
[365189182,1749525086627,-490.0,0.00017589,2]
[365189183,1749525086637,-490.0,0.00017589,2]
[365189184,1749525086648,-659.57,0.00017589,2]
[365189185,1749525086658,-490.0,0.00017589,2]
[365189186,1749525086667,-490.0,0.00017589,2]
[365189187,1749525086679,-1065.02,0.00017589,2]
[365189188,1749525086689,-1338.38,0.00017589,2]
[365189189,1749525086699,-490.0,0.00017589,2]
[365189190,1749525086709,-490.0,0.00017589,2]
[365189191,1749525086719,-523.30963421,0.00017589,2]
[365189192,1749525086728,-490.0,0.00017589,2]
[365189193,1749525086738,-490.0,0.00017589,2]
[365189194,1749525086748,-490.0,0.00017589,2]
[365189195,1749525086757,-897.68,0.00017589,2]
[365189196,1749525086767,-490.0,0.00017589,2]
[365189197,1749525086777,-490.0,0.00017589,2]
[365189198,1749525086787,-517.29,0.00017589,2]
[365189199,1749525086797,-490.0,0.00017589,2]
[365189200,1749525086807,-639.59,0.00017589,2]
[365189201,1749525086816,-490.0,0.00017589,2]
[365189202,1749525086826,-490.0,0.00017589,2]
[365189203,1749525086835,-490.0,0.00017589,2]
[365189204,1749525086845,-490.0,0.00017589,2]
[365189205,1749525086855,-490.0,0.00017589,2]
[365189206,1749525086865,-402.91030652,0.00017589,2]
[365189207,1749525086874,-1634.79,0.00017589,2]
[365189208,1749525086884,-795.78,0.00017589,2]
[365189209,1749525086893,-490.0,0.00017589,2]
[365189210,1749525086903,-490.0,0.00017589,2]
[365189211,1749525086913,-490.0,0.00017589,2]
[365189212,1749525086923,-499.37,0.00017589,2]
[365189213,1749525086933,-1983.09,0.00017589,2]
[365189214,1749525086943,-490.0,0.00017589,2]
[365189215,1749525086953,-490.0,0.00017589,2]
[365189216,1749525086963,-490.0,0.00017589,2]
[365189217,1749525086973,-1184.87,0.00017589,2]
[365189218,1749525086983,-42056.12,0.00017589,2]
[365189219,1749525086992,-490.0,0.00017589,2]
[365189220,1749525087001,-490.0,0.00017589,2]
[365189221,1749525087011,-289.12905342,0.00017589,2]
[365189222,1749525087020,-490.0,0.00017589,2]
[365189223,1749525087030,-490.0,0.00017589,2]
[365189224,1749525087039,-490.0,0.00017589,2]
[365189225,1749525087048,-490.0,0.00017589,2]
[365189226,1749525087058,-605.98,0.00017589,2]
[365189227,1749525087068,-491.03,0.00017589,2]
[365189228,1749525087078,-611.73,0.00017589,2]
[365189229,1749525087087,-497.21,0.00017589,2]
[365189230,1749525087097,-730.26,0.00017589,2]
[365189231,1749525087107,-1437.03,0.00017589,2]
[365189232,1749525087117,-490.0,0.00017589,2]
[365189233,1749525087126,-4445.982985,0.00017589,2]
[365189234,1749525087135,-381.5654024,0.00017589,2]
[365189235,1749525087145,-627.63317606,0.00017589,2]
[365189236,1749525087154,-490.0,0.00017589,2]
[365189237,1749525087163,-835.66,0.00017589,2]
[365189238,1749525087173,-2241.0,0.00017593,2]
[365189239,1749525087182,-500.0,0.00017627,2]
[365189240,1749525087192,-500.0,0.00017644,2]
[365189241,1749525087201,-332.96240428,0.00017644,2]
[365189242,1749525087211,-500.0,0.00017644,2]
[365189243,1749525087220,-500.0,0.00017644,2]
[365189244,1749525087229,-500.0,0.00017644,2]
[365189245,1749525087239,-500.0,0.00017644,2]
[365189246,1749525087249,-272.59187921,0.00017644,2]
[365189247,1749525087258,-500.43656164,0.00017644,2]
[365189248,1749525087268,-212.56746098,0.00017644,2]
[365189249,1749525087278,-500.0,0.00017644,2]
[365189250,1749525087287,-500.64086781,0.00017644,2]
[365189251,1749525087297,-500.75515196,0.00017646,2]
[365189252,1749525087307,-500.0,0.00017646,2]
[365189253,1749525087316,-5554.04029648,0.00017648,2]
[365189254,1749525087326,-548.25999105,0.00017653,2]
[365189255,1749525087335,-500.0,0.00017653,2]
[365189256,1749525087344,-168.86451845,0.00017665,2]
[365189257,1749525087354,-500.0,0.00017665,2]
[365189258,1749525087364,-501.51530201,0.00017665,2]
[365189259,1749525087373,-500.0,0.00017677,2]
[365189260,1749525087383,-215.0738,0.00017687,2]
[365189261,1749525087394,-2241.0,0.00017698,2]
[365189262,1749525087404,-30490.16017614,0.000177,2]
[365189263,1749525087414,-700.0,0.00017708,2]
[365189264,1749525087423,-600.0,0.00017711,4]
[365189265,1749525087433,-2241.0,0.00017712,2]
[365189266,1749525087444,-4956.5,0.00017728,2]
[365189267,1749525087453,-150.99,0.00017728,2]
[365189268,1749525087463,-999.99,0.00017728,2]
[365189269,1749525087474,-299.99,0.00017728,4]
[365189270,1749525087483,-3421.99,0.00017728,2]
[365189271,1749525087493,-2691.43,0.00017728,2]
[365189272,1749525087504,-49503.29,0.00017728,2]
[365189273,1749525087515,-950.89,0.00017728,2]
[365189274,1749525087524,-664.92,0.00017728,2]
[365189275,1749525087535,-173.35164408,0.00017745,2]
[365189276,1749525087545,-500.0,0.00017752,2]
[365189277,1749525087555,-730.31,0.00017752,2]
[365189278,1749525087567,-950.89,0.00017752,2]
[365189279,1749525087577,-664.92,0.00017752,2]
[365189280,1749525087587,-500.0,0.00017752,2]
[365189281,1749525087598,-490.0,0.00017753,2]
[365189282,1749525087607,-490.0,0.00017753,2]
[365189283,1749525087617,-490.0,0.00017753,2]
[365189284,1749525087627,-490.0,0.00017753,2]
[365189285,1749525087636,-490.0,0.00017753,2]
[365189286,1749525087647,-490.0,0.00017753,2]
[365189287,1749525087657,-503.0,0.00017753,2]
[365189288,1749525087667,-706.89,0.00017753,2]
[365189289,1749525087677,-490.0,0.00017753,2]
[365189290,1749525087686,-665.87,0.00017753,2]
[365189291,1749525087696,-421.45315445,0.00017753,2]
[365189292,1749525087706,-479.03264414,0.00017753,2]
[365189293,1749525087715,-490.0,0.00017753,2]
[365189294,1749525087725,-504.72,0.00017753,2]
[365189295,1749525087734,-579.14,0.00017753,2]
[365189296,1749525087744,-490.0,0.00017753,2]
[365189297,1749525087753,-490.0,0.00017753,2]
[365189298,1749525087763,-490.0,0.00017753,2]
[365189299,1749525087773,-665.32,0.00017753,2]
[365189300,1749525087783,-490.0,0.00017753,2]
[365189301,1749525087793,-490.0,0.00017753,2]
[365189302,1749525087803,-490.0,0.00017753,2]
[365189303,1749525087812,-490.0,0.00017753,2]
[365189304,1749525087823,-490.0,0.00017753,2]
[365189305,1749525087832,-490.0,0.00017753,2]
[365189306,1749525087842,-490.0,0.00017753,2]
[365189307,1749525087851,-644.96,0.00017753,2]
[365189308,1749525087861,-567.25611034,0.00017753,2]
[365189309,1749525087871,-614.43,0.00017753,2]
[365189310,1749525087880,-490.0,0.00017753,2]
[365189311,1749525087890,-490.0,0.00017753,2]
[365189312,1749525087900,-490.0,0.00017753,2]
[365189313,1749525087911,-168.85187145,0.00017753,2]
[365189314,1749525087920,-862.63,0.00017753,2]
[365189315,1749525087930,-2092.76,0.00017753,2]
[365189316,1749525087941,-490.0,0.00017753,2]
[365189317,1749525087951,-402.12842126,0.00017753,2]
[365189318,1749525087960,-490.0,0.00017753,2]
[365189319,1749525087971,-490.0,0.00017753,2]
[365189320,1749525087981,-490.0,0.00017753,2]
[365189321,1749525087990,-597.22,0.00017753,2]
[365189322,1749525088006,-490.0,0.00017753,2]
[365189323,1749525088016,-490.0,0.00017753,2]
[365189324,1749525088025,-490.0,0.00017753,2]
[365189325,1749525088035,-250.22248074,0.00017753,2]
[365189326,1749525088048,-496.63,0.00017753,2]
[365189327,1749525088057,-490.0,0.00017753,2]
[365189328,1749525088067,-490.0,0.00017753,2]
[365189329,1749525088076,-490.0,0.00017753,2]
[365189330,1749525088086,-490.0,0.00017753,2]
[365189331,1749525088095,-490.0,0.00017753,2]
[365189332,1749525088104,-490.0,0.00017753,2]
[365189333,1749525088116,-490.0,0.00017753,2]
[365189334,1749525088126,-490.0,0.00017753,2]
[365189335,1749525088135,-490.0,0.00017753,2]
[365189336,1749525088144,-565.28,0.00017753,2]
[365189337,1749525088153,-490.0,0.00017753,2]
[365189338,1749525088163,-490.0,0.00017753,2]
[365189339,1749525088174,-490.0,0.00017753,2]
[365189340,1749525088183,-490.0,0.00017753,2]
[365189341,1749525088193,-228.14730853,0.00017753,2]
[365189342,1749525088202,-490.0,0.00017753,2]
[365189343,1749525088212,-490.0,0.00017753,2]
[365189344,1749525088221,-537.96,0.00017753,2]
[365189345,1749525088230,-915.11,0.00017753,2]
[365189346,1749525088240,-490.0,0.00017753,2]
[365189347,1749525088249,-490.0,0.00017753,2]
[365189348,1749525088259,-490.0,0.00017753,2]
[365189349,1749525088268,-556.18,0.00017753,2]
[365189350,1749525088278,-490.0,0.00017753,2]
[365189351,1749525088287,-490.0,0.00017753,2]
[365189352,1749525088296,-490.0,0.00017753,2]
[365189353,1749525088305,-535.23,0.00017753,2]
[365189354,1749525088313,-449.06160283,0.00017753,2]
[365189355,1749525088321,-490.0,0.00017753,2]
[365189356,1749525088330,-490.0,0.00017753,2]
[365189357,1749525088338,-2294.03,0.00017753,2]
[365189358,1749525088348,-722.61,0.00017753,2]
[365189359,1749525088357,-490.0,0.00017753,2]
[365189360,1749525088366,-757.61,0.00017753,2]
[365189361,1749525088375,-490.0,0.00017753,2]
[365189362,1749525088384,-490.0,0.00017753,2]
[365189363,1749525088393,-424.27495037,0.00017753,2]
[365189364,1749525088402,-490.0,0.00017753,2]
[365189365,1749525088411,-1761.99,0.00017753,2]
[365189366,1749525088420,-498.01,0.00017753,2]
[365189367,1749525088429,-490.0,0.00017753,2]
[365189368,1749525088438,-626.78,0.00017753,2]
[365189369,1749525088447,-2487.15,0.00017753,2]
[365189370,1749525088458,-490.0,0.00017753,2]
[365189371,1749525088467,-490.0,0.00017753,2]
[365189372,1749525088475,-490.0,0.00017753,2]
[365189373,1749525088482,-498.78182362,0.00017753,2]
[365189374,1749525088491,-490.0,0.00017753,2]
[365189375,1749525088499,-490.0,0.00017753,2]
[365189376,1749525088507,-996.35,0.00017753,2]
[365189377,1749525088514,-591.43,0.00017753,2]
[365189378,1749525088659,-490.0,0.00017753,2]
[365189379,1749525088670,-553.91,0.00017753,2]
[365189380,1749525088680,-156.34596958,0.00017753,2]
[365189381,1749525088690,-490.0,0.00017753,2]
[365189382,1749525088699,-558.47531772,0.00017753,2]
[365189383,1749525088709,-490.0,0.00017753,2]
[365189384,1749525088719,-199.22120153,0.00017753,2]
[365189385,1749525088728,-490.0,0.00017753,2]
[365189386,1749525088738,-673.4,0.00017753,2]
[365189387,1749525088747,-490.0,0.00017753,2]
[365189388,1749525088758,-490.0,0.00017753,2]
[365189389,1749525088768,-595.43,0.00017753,2]
[365189390,1749525088778,-1580.0,0.00017753,2]
[365189391,1749525088788,-3953.88,0.00017753,2]
[365189392,1749525088797,-605.59,0.00017753,2]
[365189393,1749525088807,-490.0,0.00017753,2]
[365189394,1749525088816,-490.0,0.00017753,2]
[365189395,1749525088826,-490.0,0.00017753,2]
[365189396,1749525088835,-490.0,0.00017753,2]
[365189397,1749525088845,-490.0,0.00017753,2]
[365189398,1749525088854,-490.0,0.00017753,2]
[365189399,1749525088864,-1687.14,0.00017753,2]
[365189400,1749525088873,-490.0,0.00017753,2]
[365189401,1749525088883,-490.0,0.00017753,2]
[365189402,1749525088893,-835.39,0.00017753,2]
[365189403,1749525088902,-490.0,0.00017753,2]
[365189404,1749525088912,-988.78,0.00017753,2]
[365189405,1749525088921,-509.02,0.00017753,2]
[365189406,1749525088931,-490.0,0.00017753,2]
[365189407,1749525088940,-490.0,0.00017753,2]
[365189408,1749525088950,-520.99,0.00017753,2]
[365189409,1749525088960,-490.0,0.00017753,2]
[365189410,1749525088970,-490.0,0.00017753,2]
[365189411,1749525088979,-490.0,0.00017753,2]
[365189412,1749525088988,-490.0,0.00017753,2]
[365189413,1749525088998,-490.0,0.00017753,2]
[365189414,1749525089009,-434.66243216,0.00017753,2]
[365189415,1749525089018,-490.0,0.00017753,2]
[365189416,1749525089028,-490.0,0.00017753,2]
[365189417,1749525089038,-874.46,0.00017753,2]
[365189418,1749525089047,-583.05795973,0.00017753,2]
[365189419,1749525089056,-490.0,0.00017753,2]
[365189420,1749525089066,-490.0,0.00017753,2]
[365189421,1749525089075,-1615.08,0.00017753,2]
[365189422,1749525089085,-490.0,0.00017753,2]
[365189423,1749525089095,-529.84,0.00017753,2]
[365189424,1749525089104,-1075.4,0.00017753,2]
[365189425,1749525089114,-490.0,0.00017753,2]
[365189426,1749525089123,-655.8,0.00017753,2]
[365189427,1749525089134,-553.14,0.00017753,2]
[365189428,1749525089143,-709.07,0.00017753,2]
[365189429,1749525089153,-1655.79,0.00017753,2]
[365189430,1749525089163,-490.0,0.00017753,2]
[365189431,1749525089172,-2379.12,0.00017753,2]
[365189432,1749525089182,-490.0,0.00017753,2]
[365189433,1749525089191,-490.0,0.00017753,2]
[365189434,1749525089200,-637.09,0.00017753,2]
[365189435,1749525089210,-1068.67,0.00017753,2]
[365189436,1749525089219,-490.0,0.00017753,2]
[365189437,1749525089229,-490.0,0.00017753,2]
[365189438,1749525089239,-927.29,0.00017753,2]
[365189439,1749525089248,-490.0,0.00017753,2]
[365189440,1749525089258,-739.16,0.00017753,2]
[365189441,1749525089267,-848.47,0.00017753,2]
[365189442,1749525089277,-226.01198038,0.00017753,2]
[365189443,1749525089287,-490.0,0.00017753,2]
[365189444,1749525089296,-481.24419164,0.00017753,2]
[365189445,1749525089305,-490.0,0.00017753,2]